Cogmind - Beta 17 @@@ ROGUE MODE // 2026.08.23 @ 14:47:01 Player: Six of Ten Result: Destroyed by X-72 Disruptor with Arc Projector Performance ------------- Evolutions (4) 2000 Regions Visited (12) 2400 Robots Destroyed (130) 650 Value Destroyed (5433) 5433 Prototype IDs (4) 80 Alien Tech Used (0) 0 Bonus (3303) 3303 TOTAL SCORE: 13866 Bonus ------- High Alert Combat Kills 345 Follower Combat Kills 888 Entered Garrisons 600 Used RIF Installer 1000 Entered DSFs 500 Friendly Fire -30 Cogmind --------- Core Integrity 0/850 Matter 17/300 Energy 102/150 System Corruption 5% Temperature Cool (49) Movement Hovering (480) Ox7 Location -6/Garrison Parts ------- > --- POWER (2) -------- Micro Nuclear Core > --- PROPULSION (4) --- Gravmag System > --- UTILITY (6) ------ Improved Heat Sink High-capacity Storage Unit Target Analyzer Improved Light Armor Plating Relay Coupler [NC] (9) > --- WEAPON (3) ------- Shock Rifle Gatling Laser Magnetic Acceleration Cannon > --- INVENTORY (20) --- Light Nuclear Core Advanced Heat Sink Improved Sensor Array Improved Launcher Guidance Computer Improved Launcher Guidance Computer Flak Gun Magnetic Acceleration Cannon Magnetic Acceleration Cannon Magnetic Acceleration Cannon Improved Datajack Remote Datajack Peak State ------------ > --- POWER ------------ Reinforced Deuterium Engine Light Angular Momentum Engine > --- PROPULSION ------- Improved Medium Treads Improved Medium Treads Improved Medium Treads Improved Medium Treads > --- UTILITY ---------- Advanced Heat Sink High-capacity Storage Unit Improved Light Armor Plating Reflective Plating Hacking Suite Relay Coupler [NC] > --- WEAPON ----------- Heavy Machine Gun Heavy Machine Gun Heavy Machine Gun > --- INVENTORY -------- Deuterium Engine Light Nuclear Core Wheel Improved Sensor Array Medium Armor Plating Medium Armor Plating Medium Armor Plating Reflective Plating Reflective Plating Reflective Plating Heavy Machine Gun Heavy Machine Gun Magnetic Acceleration Cannon Magnetic Acceleration Cannon Magnetic Acceleration Cannon Magnetic Acceleration Cannon Rocket Launcher Improved Datajack Remote Datajack [Rating: 66] Favorites ----------- Power Deuterium Engine Engine Deuterium Engine Power Core Light Nuclear Core Propulsion Light Treads Treads Light Treads Wheel Wheel Hover Unit Gravmag System Flight Unit Improved Flight Unit Utility Reflective Plating Device Advanced Heat Sink Storage Large Storage Unit Processor Target Analyzer Hackware Relay Coupler [NC] Protection Reflective Plating Weapon Heavy Assault Rifle Energy Gun Medium Laser Ballistic Gun Heavy Assault Rifle Ballistic Cannon Magnetic Acceleration Cannon Launcher Rocket Launcher Special Weapon Remote Datajack Impact Weapon Mace Special Melee Weapon Improved Datajack Build | -11 -10 -10 -9 -9 -8 -8 -7 -7 -6 -6 -6 -6 ------- Run | Yrd Mat Min Mat Min Mat Gar Fac DSF Fac Gar Fac Gar Slots Evolved 8 | . . . 2 . 2 . 2 . 2 . . . Power 1 | . . . . . . . . . 1 . . . Propulsion 2 | . . . . . 1 . . . 1 . . . Utility 4 | . . . 1 . 1 . 2 . . . . . Weapon 1 | . . . 1 . . . . . . . . . Parts Attached 115 | 8 2 3 9 5 14 6 8 12 4 14 20 10 Power 12 | 1 . 1 . 1 1 . 1 1 . 3 2 1 Engine 8 | 1 . 1 . . 1 . . 1 . 3 1 . Core 4 | . . . . 1 . . 1 . . . 1 1 Reactor . | . . . . . . . . . . . . . Propulsion 31 | 4 . . 1 2 3 2 3 3 2 3 5 3 Treads 17 | 2 . . 1 2 3 2 . 2 2 3 . . Leg . | . . . . . . . . . . . . . Wheel 8 | 2 . . . . . . . 1 . . 5 . Hover 3 | . . . . . . . . . . . . 3 Flight 3 | . . . . . . . 3 . . . . . Utility 39 | 1 2 2 2 . 8 1 3 4 1 6 7 2 Device 9 | . . 2 . . 2 . 1 1 1 . 1 1 Storage 3 | 1 1 . . . . . . 1 . . . . Processor 1 | . . . . . . . . . . . 1 . Hackware 5 | . . . . . . 1 2 . . 2 . . Protection 21 | . 1 . 2 . 6 . . 2 . 4 5 1 Artifact . | . . . . . . . . . . . . . Weapon 33 | 2 . . 6 2 2 3 1 4 1 2 6 4 Energy Gun 5 | 2 . . . . 1 . . . . . . 2 Energy Cannon . | . . . . . . . . . . . . . Ballistic Gun 18 | . . . 6 . 1 2 . 4 1 2 1 1 Ballistic Cannon 5 | . . . . . . . . . . . 4 1 Launcher 2 | . . . . 2 . . . . . . . . Special Weapon 1 | . . . . . . . 1 . . . . . Impact Weapon 1 | . . . . . . 1 . . . . . . Slashing Weapon . | . . . . . . . . . . . . . Piercing Weapon . | . . . . . . . . . . . . . Special Melee Weapon 1 | . . . . . . . . . . . 1 . Unidentified Prototypes 2 | . . . 1 . . . 1 . . . . . Parts Lost 45 | . . 1 . . 4 1 . 2 1 5 20 11 Power 5 | . . . . . . . . . . 1 2 2 Propulsion 12 | . . . . . . . . . . . 8 4 Utility 19 | . . 1 . . 3 1 . 2 . 3 7 2 Weapon 9 | . . . . . 1 . . . 1 1 3 3 Highest Loss Streak 10 | . . 1 . . 3 1 . 1 1 2 10 8 To Critical Strikes 2 | . . . . . . . . 1 . . 1 . Average Backups 14 | 3 7 8 14 15 14 15 7 11 19 18 17 10 Power 1 | . 1 1 . 1 1 1 1 1 1 1 1 1 Propulsion 2 | 1 3 2 3 3 4 5 2 1 1 1 . . Utility 3 | . 1 2 3 4 1 2 . 1 7 6 6 4 Weapon 5 | . 1 2 6 7 5 4 3 4 7 7 6 3 Tool/Special . | . . . . . . . . . . . . . Unused Backups 18 | . 2 . 8 . 2 1 1 . . . . 4 Power . | . . . . . . . . . . . . . Propulsion 6 | . 2 . 3 . . . 1 . . . . . Utility 4 | . . . 1 . 1 . . . . . . 2 Weapon 6 | . . . 4 . . . . . . . . 2 Tool/Special 2 | . . . . . 1 1 . . . . . . Average Slot Usage (%) 94 | . 91 99 96 100 96 95 88 98 99 97 83 60 Engine 8 | . 14 14 11 6 4 9 3 6 6 10 11 . Core 1 | . . . . 4 4 . 4 . 6 . . 2 Treads 22 | . 28 28 21 22 25 27 5 12 25 25 14 . Device 4 | . . 13 7 . 6 . 10 15 6 6 6 3 Storage 8 | . 14 14 11 11 9 9 2 4 6 6 6 6 Hackware 4 | . . . . . . . 18 18 13 12 8 6 Protection 15 | . 5 . 13 22 19 22 4 4 13 13 12 9 Energy Gun 3 | . 28 28 4 . 3 1 . . . . . 4 Ballistic Gun 19 | . . . 26 32 23 21 15 21 20 19 10 1 Impact Weapon 1 | . . . . . . 4 2 . . . . . Peak Build Rating 66 | 6 8 9 24 26 31 29 34 49 63 66 58 49 Average Rating 33 | 5 7 8 19 24 28 26 32 42 62 59 46 34 On Entrance 28 | . 6 8 8 24 26 28 29 33 49 63 57 33 Avg Prop Armor Cover (%) 8 | 7 . . . . . . . 8 . . . . Naked Turns . | . . . . . . . . . . . . . Heaviest Build 102 | 11 29 29 42 43 58 58 19 83 86 87 102 69 Greatest Support 120 | 40 40 40 40 40 63 63 15 60 120 120 100 27 Greatest Overweight (x) 24 | 2 . . 1 1 1 . 1 8 . 1 24 21 Average Overweight (x) . | . . . . 1 . . . 3 . . 1 4 Largest Inventory Capacity 20 | 8 15 15 15 15 15 15 15 20 20 20 20 20 Average Capacity 16 | 7 8 15 15 15 15 15 6 15 20 20 20 20 Most Carried 20 | 7 8 9 15 15 15 15 14 18 20 20 20 13 Average Carried 14 | 3 7 8 14 15 14 14 6 11 19 18 17 10 Final Capacity 20 | 8 15 15 15 15 15 15 5 20 20 20 20 20 Final Carried 19 | 7 8 9 15 15 15 15 5 18 19 19 13 11 Class Distribution -------------------- 39% | Scavenger-Tank 30% | Tank 14% | Scavenger-Mutant 13% | Mutant Dominant Class ---------------- Mutant | -10/Materials Mutant | -10/Mines Tank | -9/Materials Tank | -9/Mines Scavenger-Tank | -8/Materials Scavenger-Mutant | -8/Garrison Scavenger-Skirmisher | -7/Factory Tank | -7/DSF Scavenger-Tank | -6/Factory Scavenger-Tank | -6/Garrison Scavenger-Tank | -6/Factory Scavenger-Tank | -6/Garrison Resources | -11 -10 -10 -9 -9 -8 -8 -7 -7 -6 -6 -6 -6 ----------- Run | Yrd Mat Min Mat Min Mat Gar Fac DSF Fac Gar Fac Gar Matter Collected 4501 | 234 56 35 362 379 836 483 . 334 182 994 415 191 Remotely . | . . . . . . . . . . . . . Salvage Created 5100 | 21 205 45 525 522 1054 494 . 91 380 1188 463 112 Parts 267 | 3 8 1 32 32 55 35 . 3 9 47 33 9 Haulers Intercepted . | . . . . . . . . . . . . . Recyclers Shooed 1 | . 1 . . . . . . . . . . . Parts Field Recycled . | . . . . . . . . . . . . . Retrieved Matter . | . . . . . . . . . . . . . Parts Self-Destructed . | . . . . . . . . . . . . . Prevented . | . . . . . . . . . . . . . Parts Restored . | . . . . . . . . . . . . . Kills | -11 -10 -10 -9 -9 -8 -8 -7 -7 -6 -6 -6 -6 ------- Run | Yrd Mat Min Mat Min Mat Gar Fac DSF Fac Gar Fac Gar Combat Hostiles Destroyed 111 | . 3 1 12 14 21 12 . 2 5 27 11 3 Melee 1 | . . . . . . 1 . . . . . . Guns 95 | . 3 . 12 12 21 10 . 2 4 24 7 . Cannons 7 | . . . . . . . . . . . 4 3 AOE 7 | . . . . 2 . 1 . . 1 3 . . Classes Destroyed 15 | 1 3 . 4 2 1 1 . 1 . 1 1 . Worker 4 | . . . . 3 . . . . . . 1 . Builder 5 | . . . . 1 . . . . . . 4 . Tunneler 1 | 1 . . . . . . . . . . . . Recycler 3 | . 1 . . . 1 . . . 1 . . . Operator 2 | . 1 . . . 1 . . . . . . . Watcher 4 | . . . 2 . 2 . . . . . . . Swarmer 23 | . . . 3 4 4 2 . . . 8 2 . Grunt 52 | . 3 1 6 8 11 2 . 1 3 12 5 . Duelist 2 | . . . 1 . 1 . . . . . . . Sentry 22 | . . . 2 2 4 7 . . . 6 . 1 Specialist 1 | . . . . . . . . 1 . . . . Hunter 5 | . . . . . . 1 . . 2 . 2 . Programmer 4 | . . . . . . . . . . . 2 2 Heavy 1 | . . . . . 1 . . . . . . . Behemoth 1 | . . . . . . . . . . 1 . . Best Kill Streak 10 | 1 3 1 3 6 6 4 . 1 5 10 6 2 Combat Bots Only 10 | . 2 1 3 4 5 4 . 1 4 10 3 2 Max Kills in Single Turn 3 | 1 1 1 2 2 1 1 . 1 2 3 1 1 Gunslinging 2 | . . . 1 . . . . . . 2 . . Exploded 2 | . . . . 1 . 1 . . 1 2 . . Melee 1 | . . . . . . 1 . . . . . . Uniques/NPCs Destroyed . | . . . . . . . . . . . . . Combat | -11 -10 -10 -9 -9 -8 -8 -7 -7 -6 -6 -6 -6 -------- Run | Yrd Mat Min Mat Min Mat Gar Fac DSF Fac Gar Fac Gar Hostile Shots Fired 1120 | . 15 25 38 47 109 76 . 15 36 345 195 219 Missed 349 | . 4 3 14 15 23 18 . 5 7 147 52 61 Hits 771 | . 11 22 24 32 86 58 . 10 29 198 143 158 Melee 7 | . . . 3 . 2 . . 2 . . . . Projectile 764 | . 11 22 21 32 84 58 . 8 29 198 143 158 AOE 2 | . . . . . 2 . . . . . . . Critical Strikes 18 | . . . . . 5 2 . 1 . 1 6 3 Part Disruptions 2 | . . . . . . . . . . . 1 1 Damage Taken 9981 | . 121 267 336 341 1362 836 . 193 723 2070 2296 1436 Core 1124 | . 32 22 33 33 129 12 . 11 72 157 279 344 Absorbed by Shields 78 | . . . . . . . . 34 . . 44 . Redirected to Shielding 98 | . . . . . . . . . . . . 98 Ignored by Resistances 359 | . . . 15 18 130 52 . . . 110 34 . Regen/Repaired (Parts) 214 | . . . 130 . 84 . . . . . . . Core Remaining (%) 86 | 100 . 78 . 83 . 74 . 98 . . . . Volleys Fired 334 | 2 14 11 23 24 67 41 . 13 15 65 43 16 Largest 3 | 2 2 2 3 3 3 3 . 3 3 3 3 3 Hottest 174 | 90 90 90 75 80 109 116 . 90 90 93 132 174 Shots Fired 881 | 4 27 18 69 72 200 110 . 37 43 176 97 28 Gun 796 | 4 27 18 69 67 200 109 . 36 42 163 53 8 Cannon 60 | . . . . . . . . . . . 40 20 Launcher 14 | . . . . 5 . 1 . . . 8 . . Special 11 | . . . . . . . . 1 1 5 4 . Kinetic 779 | . . . 69 67 190 98 . 36 42 163 93 21 Thermal 75 | 4 27 18 . . 10 11 . . . . . 5 Explosive 14 | . . . . 5 . 1 . . . 8 . . Electromagnetic 2 | . . . . . . . . . . . . 2 Robot Hit Streak 26 | 3 5 7 13 14 16 11 . 7 14 26 12 7 Robot Miss Streak 5 | . 2 1 2 3 4 2 . 3 3 5 3 3 Penetration Max . | . . . . . . . . . . . . . Secondary Targets 20 | . 1 . 2 1 2 2 . . . 10 2 . Max Gunslinging Chain 2 | . 1 . 1 1 1 1 . . . 2 1 . Shots Hit Robots 550 | 3 17 15 45 33 126 70 . 22 26 111 63 19 Core Hits 258 | 1 10 3 19 24 47 23 . 8 14 72 29 8 Critical Kills 1 | . . . . . . 1 . . . . . . Critical Parts Destroyed 1 | . . . . . . . . . . . 1 . Critical Strikes 7 | . 1 1 . . . 1 . . . . 2 2 Burn 2 | . 1 1 . . . . . . . . . . Destroy 2 | . . . . . . 1 . . . . 1 . Blast 3 | . . . . . . . . . . . 1 2 Melee Attacks 18 | . . . . . . 16 . . . . 2 . Impact 16 | . . . . . . 16 . . . . . . Slashing . | . . . . . . . . . . . . . Piercing . | . . . . . . . . . . . . . Sneak Attacks 2 | . . . . . . . . . . . 2 . Combat Hostiles . | . . . . . . . . . . . . . Follow-up Attacks . | . . . . . . . . . . . . . Damage Inflicted 11457 | 36 229 180 778 877 2036 1119 . 333 777 2879 1612 601 Guns 9099 | 36 229 180 778 571 2036 1042 . 333 500 2450 865 79 Cannons 1263 | . . . . . . . . . . . 747 516 Explosions 1047 | . . . . 306 . 35 . . 277 429 . . Melee 42 | . . . . . . 42 . . . . . . Ramming 6 | . . . . . . . . . . . . 6 Kinetic 9554 | . . . 778 571 1898 884 . 333 500 2450 1612 528 Thermal 1085 | 36 229 180 . . 138 158 . . 277 . . 67 Explosive 770 | . . . . 306 . 35 . . . 429 . . Electromagnetic . | . . . . . . . . . . . . . Impact 42 | . . . . . . 42 . . . . . . Slashing . | . . . . . . . . . . . . . Piercing . | . . . . . . . . . . . . . Highest Corruption 5 | . . . . . . . . 3 . . 5 5 Average Corruption 3 | . . . . . . . . 3 . . 3 5 Corruption Purged . | . . . . . . . . . . . . . Corruption Blocked . | . . . . . . . . . . . . . Effects 13 | . . . . . . . . 1 . . 4 8 Message Errors 3 | . . . . . . . . . . . 2 1 Matter Fused 2 | . . . . . . . . . . . . 2 Heat Flow Errors 1 | . . . . . . . . . . . . 1 Energy Discharges 3 | . . . . . . . . . . . 1 2 Data Loss (minor) 3 | . . . . . . . . 1 . . 1 1 Weapon Failures 1 | . . . . . . . . . . . . 1 Overload Shots . | . . . . . . . . . . . . . Overflow Damage 122 | . . . . 15 . 22 . . 82 . 3 . Projectiles 3 | . . . . . . . . . . . 3 . Explosions 97 | . . . . 15 . . . . 82 . . . Melee 22 | . . . . . . 22 . . . . . . Knockbacks 6 | . . . . . . . . . . . 6 . Impact . | . . . . . . . . . . . . . Kinetic 6 | . . . . . . . . . . . 6 . Secondary . | . . . . . . . . . . . . . Self-Inflicted Damage 203 | . . . . 21 . . . . 180 . . 2 Shots 3 | . . . . 1 . . . . 2 . . . Rammed 3 | . . . . . . . . . . . . 3 Targets Rammed 3 | . . . . . . . . . . . . 3 Kicked . | . . . . . . . . . . . . . Crushed . | . . . . . . . . . . . . . Highest Temperature 408 | 60 276 264 258 299 395 408 . 320 321 91 84 91 Average Temperature 114 | 30 113 174 79 113 156 123 . 87 128 33 22 33 Received Heat Transfer 2361 | . 66 150 87 69 639 270 . . 45 600 171 264 Effects 15 | . . 2 . . 8 3 . . 2 . . . Shutdowns 5 | . . . . . 2 2 . . 1 . . . Energy Bleed 5 | . . . . . 4 . . . 1 . . . Interference 5 | . . 2 . . 2 1 . . . . . . Siege Activations . | . . . . . . . . . . . . . Martial Activations . | . . . . . . . . . . . . . Shielding Activations . | . . . . . . . . . . . . . Robots Disrupted . | . . . . . . . . . . . . . Combat Hostiles . | . . . . . . . . . . . . . Robots Corrupted . | . . . . . . . . . . . . . Combat Hostiles . | . . . . . . . . . . . . . Parts Fried . | . . . . . . . . . . . . . Impact Corruptions 1 | . . . . . . 1 . . . . . . Robots Melted 1 | . . 1 . . . . . . . . . . Combat Hostiles 1 | . . 1 . . . . . . . . . . Parts Melted 7 | 1 3 2 . . 1 . . . . . . . Heat Transferred 2297 | 99 669 569 . . 296 314 . . 200 . . 150 Parts Sabotaged . | . . . . . . . . . . . . . Parts Stolen . | . . . . . . . . . . . . . Parts Stripped . | . . . . . . . . . . . . . Power Chain Reactions . | . . . . . . . . . . . . . Alert | -11 -10 -10 -9 -9 -8 -8 -7 -7 -6 -6 -6 -6 ------- Run | Yrd Mat Min Mat Min Mat Gar Fac DSF Fac Gar Fac Gar Maximum Alert Level 3 | . . . . . . 3 2 2 1 3 2 1 Low Security (%) 48 | 100 100 100 100 100 100 18 . . 34 6 . 33 Level 1 17 | . . . . . . 22 . 8 65 16 37 66 Level 2 21 | . . . . . . 23 100 91 . 49 62 . Level 3 11 | . . . . . . 35 . . . 27 . . Level 4 . | . . . . . . . . . . . . . Level 5 . | . . . . . . . . . . . . . High Security . | . . . . . . . . . . . . . Max Security . | . . . . . . . . . . . . . Sterilizations 1 | . . . . . . . . 1 . . . . Peak Influence 1067 | 5 65 20 104 197 174 1067 560 614 343 960 509 244 Initial 560 | . . 17 . 25 36 63 560 378 322 81 504 229 Average 295 | . 19 1 51 93 48 517 550 538 234 541 426 218 Influence Increases 4391 | 5 107 20 337 366 604 1014 . 276 253 969 350 90 Destroy 0b10 Robot/C 2700 | . 60 20 240 280 420 480 . 200 100 620 220 60 Destroy 0b10 Robot/NC 95 | 5 10 . 10 20 20 . . . 5 . 25 . Destroy Leader 458 | . 20 . 64 40 114 30 . 50 30 40 60 10 Allied During Kill 82 | . . . . . . 32 . 23 . 27 . . Successful Hack 153 | . 17 . 20 . 30 35 . . 27 19 5 . Disable Machine 60 | . . . . . . . . . 30 15 . 15 Anti-Garrison Action 400 | . . . . . . 300 . . . 100 . . Destroy Structure 233 | . . . 3 26 5 77 . 3 31 73 10 5 Partial Spotted 15 | . . . . . 15 . . . . . . . Lose Combat Pursuer 195 | . . . . . . 60 . . 30 75 30 . Influence Decreases 4182 | 5 62 65 270 339 601 44 527 202 750 126 982 209 Entered New Map 1714 | . . 28 . 42 58 34 507 162 292 36 456 99 Time Decay 1668 | 5 62 27 270 297 383 . 20 . 278 . 326 . Lost Part 420 | . . 10 . . 10 10 . 20 10 50 200 110 Lost Ally 80 | . . . . . . . . 20 20 40 . . Purge Threat 300 | . . . . . 150 . . . 150 . . . Squads Dispatched 18 | . 2 . 2 1 4 . . 2 2 . 5 . Investigation 6 | . . . 1 . 2 . . . 2 . 1 . Extermination 2 | . . . . . . . . . . . 2 . Reinforcement 10 | . 2 . 1 1 2 . . 2 . . 2 . Assault . | . . . . . . . . . . . . . Garrison . | . . . . . . . . . . . . . Intercept . | . . . . . . . . . . . . . Searches Triggered . | . . . . . . . . . . . . . Construction Impeded 2 | . . . . 1 . . . . . . 1 . Haulers Reinforced . | . . . . . . . . . . . . . Active Scanning Responses . | . . . . . . . . . . . . . Cargo Convoy Interrupts . | . . . . . . . . . . . . . Stealth | -11 -10 -10 -9 -9 -8 -8 -7 -7 -6 -6 -6 -6 --------- Run | Yrd Mat Min Mat Min Mat Gar Fac DSF Fac Gar Fac Gar Distress Signals 3 | . . . 1 . 1 . . . 1 . . . Communications Jammed . | . . . . . . . . . . . . . Distress Signals . | . . . . . . . . . . . . . Times Spotted 177 | . 6 2 15 14 30 26 . 11 8 38 16 11 Peak Tracking Total 10 | . 5 2 3 4 7 3 . 3 5 10 4 7 Tactical Retreats 11 | . . . . . . 3 . . 2 4 2 . Traps | -11 -10 -10 -9 -9 -8 -8 -7 -7 -6 -6 -6 -6 ------- Run | Yrd Mat Min Mat Min Mat Gar Fac DSF Fac Gar Fac Gar Traps Triggered 9 | . . . . . . . . 3 1 1 2 2 Indirectly . | . . . . . . . . . . . . . Trap Hack Attempts . | . . . . . . . . . . . . . Triggered . | . . . . . . . . . . . . . Disarmed . | . . . . . . . . . . . . . Reprogrammed . | . . . . . . . . . . . . . Reused . | . . . . . . . . . . . . . Traps Extracted . | . . . . . . . . . . . . . Installed . | . . . . . . . . . . . . . Triggered . | . . . . . . . . . . . . . Machines | -11 -10 -10 -9 -9 -8 -8 -7 -7 -6 -6 -6 -6 ---------- Run | Yrd Mat Min Mat Min Mat Gar Fac DSF Fac Gar Fac Gar Machines Disabled 7 | . . . . . . 1 . . 2 3 . 1 Max in Single Turn 2 | . . . . . . 1 . . 2 1 . 1 Garrison Relay 3 | . . . . . . 1 . . . 2 . . Machines Repaired . | . . . . . . . . . . . . . Machines Dismantled . | . . . . . . . . . . . . . Machines Sabotaged . | . . . . . . . . . . . . . Overloaded Fab Kills . | . . . . . . . . . . . . . Hacking | -11 -10 -10 -9 -9 -8 -8 -7 -7 -6 -6 -6 -6 --------- Run | Yrd Mat Min Mat Min Mat Gar Fac DSF Fac Gar Fac Gar Machines Accessed 34 | . 3 . 4 . 10 4 1 . 7 3 2 . Terminals 27 | . 3 . 2 . 7 4 1 . 6 3 1 . Fabricators . | . . . . . . . . . . . . . Repair Stations 2 | . . . 1 . 1 . . . . . . . Recycling Units . | . . . . . . . . . . . . . Scanalyzers 2 | . . . 1 . 1 . . . . . . . Garrison Access 3 | . . . . . 1 . . . 1 . 1 . Total Hacks 101 | . 11 . 18 . 31 6 2 . 22 6 5 . Successful 56 | . 5 . 14 . 18 3 1 . 10 2 3 . Failed 43 | . 6 . 3 . 12 3 1 . 12 4 2 . Catastrophic 10 | . 2 . 2 . 2 1 . . 2 . 1 . Database Lockouts 2 | . . . 1 . 1 . . . . . . . Manual 60 | . 9 . 7 . 21 . . . 19 . 4 . Terminals 81 | . 11 . 8 . 23 6 2 . 21 6 4 . Fabricators . | . . . . . . . . . . . . . Repair Stations 8 | . . . 4 . 4 . . . . . . . Recycling Units . | . . . . . . . . . . . . . Scanalyzers 9 | . . . 6 . 3 . . . . . . . Garrison Access 3 | . . . . . 1 . . . 1 . 1 . Terminal Hacks 19 | . 1 . 2 . 6 3 1 . 3 2 1 . Robot Analysis 1 | . . . . . 1 . . . . . . . Prototype ID Bank 1 | . . . . . 1 . . . . . . . Open Door 2 | . . . . . . 1 . . . 1 . . Open DSF 1 | . . . . . . . 1 . . . . . Emergency Access Points 2 | . . . . . . 1 . . . 1 . . Terminal Index 5 | . 1 . 1 . 1 . . . 1 . 1 . Garrison Index 1 | . . . . . . . . . 1 . . . Alert Level 1 | . . . . . 1 . . . . . . . Unreport Threat 2 | . . . . . 1 . . . 1 . . . Patrol Status 1 | . . . . . 1 . . . . . . . Zone Layout 1 | . . . 1 . . . . . . . . . Patrol Navigation 1 | . . . . . . 1 . . . . . . Fabricator Hacks . | . . . . . . . . . . . . . Repair Station Hacks 7 | . . . 4 . 3 . . . . . . . Scan Component 4 | . . . 2 . 2 . . . . . . . Repair 3 | . . . 2 . 1 . . . . . . . Recycling Unit Hacks . | . . . . . . . . . . . . . Scanalyzer 7 | . . . 5 . 2 . . . . . . . Insert Component 2 | . . . 2 . . . . . . . . . Analyze 2 | . . . 2 . . . . . . . . . Retrieve Study 3 | . . . 1 . 2 . . . . . . . Garrison Access Hacks 3 | . . . . . 1 . . . 1 . 1 . Unlock Access 3 | . . . . . 1 . . . 1 . 1 . Unauthorized Hacks 20 | . 4 . 3 . 6 . . . 6 . 1 . Terminals 20 | . 4 . 3 . 6 . . . 6 . 1 . Botnet 17 | . 3 . 2 . 5 . . . 6 . 1 . Operators 3 | . 1 . 1 . 1 . . . . . . . Fabricators . | . . . . . . . . . . . . . Repair Stations . | . . . . . . . . . . . . . Recycling Units . | . . . . . . . . . . . . . Scanalyzers . | . . . . . . . . . . . . . Garrison Access . | . . . . . . . . . . . . . Data Cores Recovered . | . . . . . . . . . . . . . Used . | . . . . . . . . . . . . . Hacking Detections 31 | . 3 . 4 . 10 3 1 . 6 3 1 . Full Trace Events 7 | . 1 . 1 . 2 1 . . 1 . 1 . Feedback Events . | . . . . . . . . . . . . . Feedback Blocked . | . . . . . . . . . . . . . Robot Schematics Acquired . | . . . . . . . . . . . . . Robots Built . | . . . . . . . . . . . . . Authchips . | . . . . . . . . . . . . . Time . | . . . . . . . . . . . . . Total Robot Build Rating . | . . . . . . . . . . . . . Part Schematics Acquired 2 | . . . 2 . . . . . . . . . Parts Built . | . . . . . . . . . . . . . Authchips . | . . . . . . . . . . . . . Time . | . . . . . . . . . . . . . Total Part Build Rating . | . . . . . . . . . . . . . Part Studies Acquired 3 | . . . 1 . 2 . . . . . . . Parts Repaired 3 | . . . 2 . 1 . . . . . . . Time 90 | . . . 52 . 38 . . . . . . . Parts Recycled . | . . . . . . . . . . . . . Recycled Matter . | . . . . . . . . . . . . . Retrieved Matter . | . . . . . . . . . . . . . Retrieved Components . | . . . . . . . . . . . . . Parts Scanalyzed 2 | . . . 2 . . . . . . . . . Part Schematics Acquired 2 | . . . 2 . . . . . . . . . Parts Damaged . | . . . . . . . . . . . . . Bothacking | -11 -10 -10 -9 -9 -8 -8 -7 -7 -6 -6 -6 -6 ------------ Run | Yrd Mat Min Mat Min Mat Gar Fac DSF Fac Gar Fac Gar Used RIF Installer 2 | . . . . . . 1 . . . 1 . . Robot Detection 1 | . . . . . . . . . . 1 . . Robots Hacked 7 | . . . . . . . . 1 1 3 2 . Non-combat 3 | . . . . . . . . . 1 . 2 . Combat 4 | . . . . . . . . 1 . 3 . . Robot Hacks Applied 9 | . . . . . . . . 1 1 3 4 . parse_system 1 | . . . . . . . . . . . 1 . ignore_parts 1 | . . . . . . . . . . . 1 . map_route 2 | . . . . . . . . . 1 . 1 . mark_security 1 | . . . . . . . . . . . 1 . amplify_resonance 1 | . . . . . . . . . . 1 . . overwrite_iff 1 | . . . . . . . . . . 1 . . formatsys_high 2 | . . . . . . . . 1 . 1 . . Relay Couplers Released 12 | . . . . . . 4 . . . 8 . . Machine Destruction 12 | . . . . . . 4 . . . 8 . . Attached 4 | . . . . . . 1 1 . . 2 . . Fabnet Peak Effective % . | . . . . . . . . . . . . . Robots Rewired . | . . . . . . . . . . . . . Allies Hacked . | . . . . . . . . . . . . . Hacks Repelled . | . . . . . . . . . . . . . Allies | -11 -10 -10 -9 -9 -8 -8 -7 -7 -6 -6 -6 -6 -------- Run | Yrd Mat Min Mat Min Mat Gar Fac DSF Fac Gar Fac Gar Total Allies 5 | . . . . . . 1 . 1 . 3 . . Largest Group 3 | . . . . . . 1 1 1 1 3 . . Highest-Rated Group 149 | . . . . . . 149 144 144 32 122 . . Highest-Rated Ally 149 | . . . . . . 149 144 144 32 51 . . Total Orders . | . . . . . . . . . . . . . Ally Attacks 48 | . . . . . . 22 . 14 . 12 . . Total Damage 2187 | . . . . . . 1136 . 559 . 492 . . Kills 24 | . . . . . . 12 . 8 . 4 . . Allies Corrupted . | . . . . . . . . . . . . . Allies Melted . | . . . . . . . . . . . . . Intel | -11 -10 -10 -9 -9 -8 -8 -7 -7 -6 -6 -6 -6 ------- Run | Yrd Mat Min Mat Min Mat Gar Fac DSF Fac Gar Fac Gar Active Infowar (turns) 1308 | . . 12 255 . 753 . 53 11 224 . . . Sensors 616 | . . . . . 328 . 53 11 224 . . . Terrain 267 | . . 12 255 . . . . . . . . . Jamming 425 | . . . . . 425 . . . . . . . ECM 41 | . . . . . . . 30 11 . . . . Robot Analysis Total 1 | . . . . . 1 . . . . . . . Derelict Logs Recovered 3 | . . 1 . 2 . . . . . . . . Drone Launches . | . . . . . . . . . . . . . Drone Recoveries . | . . . . . . . . . . . . . Exploration | -11 -10 -10 -9 -9 -8 -8 -7 -7 -6 -6 -6 -6 ------------- Run | Yrd Mat Min Mat Min Mat Gar Fac DSF Fac Gar Fac Gar Turns Passed 8683 | 149 239 394 845 761 1120 1959 53 426 617 1108 736 276 Spaces Moved 3925 | 89 115 211 311 290 409 1005 47 189 297 553 358 51 Core 27 | 14 . . . . . . . . . . 3 10 Treads 3515 | 66 115 211 311 290 409 1005 . 59 297 553 199 . Legs . | . . . . . . . . . . . . . Wheels 267 | 9 . . . . . . . 90 . . 156 12 Hover 29 | . . . . . . . . . . . . 29 Flight 87 | . . . . . . . 47 40 . . . . Fastest Speed 34 | 50 160 160 160 240 163 163 34 104 160 160 85 115 Average Speed 172 | 135 160 160 206 240 172 163 74 171 160 160 152 336 Slowest Speed 1250 | 160 160 160 240 240 240 163 104 240 160 240 1250 1100 Overloaded Moves . | . . . . . . . . . . . . . Propulsion Burnouts . | . . . . . . . . . . . . . Robots Hopped . | . . . . . . . . . . . . . Potential Cave-ins . | . . . . . . . . . . . . . Cave-ins Triggered . | . . . . . . . . . . . . . Exploration Rate (%) 36 | 4 20 37 33 60 40 94 1 89 8 68 10 8 Regions Visited 12 Branch Regions 2 Pre-discovered Areas 1 | . . 1 . . . . . . . . . . Known Exits Taken 4 | . . . . . 1 . 1 . 1 . 1 . Unknown Exits Taken 5 | 1 1 1 1 1 . . . . . . . . Scrap Searched 1 | . . . . 1 . . . . . . . . Spaces Dug . | . . . . . . . . . . . . . Terrain Destroyed 88 | . . . . 26 . . . . 29 24 9 . Melee . | . . . . . . . . . . . . . Projectile 9 | . . . . . . . . . . . 9 . AOE 79 | . . . . 26 . . . . 29 24 . . Terrain Rammed . | . . . . . . . . . . . . . Walls Destroyed . | . . . . . . . . . . . . . Machines Disabled . | . . . . . . . . . . . . . Actions | -11 -10 -10 -9 -9 -8 -8 -7 -7 -6 -6 -6 -6 --------- Run | Yrd Mat Min Mat Min Mat Gar Fac DSF Fac Gar Fac Gar Total 5195 | 109 144 250 485 328 700 1205 67 263 409 650 467 118 Wait 571 | 4 6 23 110 5 180 116 2 10 84 3 21 7 Move 3916 | 88 114 210 310 289 409 1004 46 188 297 552 358 51 Hop . | . . . . . . . . . . . . . Pick Up 73 | 7 5 2 18 . 12 2 2 14 5 4 1 1 Fast Attach 45 | 6 . . 4 . 4 1 1 8 . 3 10 8 Attach 36 | . 1 2 1 . 6 . 6 . 3 5 8 4 Detach 2 | . . 1 . . . . . . . . . 1 Swap 82 | 2 1 1 6 7 10 19 2 7 4 13 9 1 Drop 61 | . 3 . 13 3 12 6 8 7 1 5 3 . Fire 334 | 2 14 11 23 24 67 41 . 13 15 65 43 16 Melee 18 | . . . . . . 16 . . . . 2 . Ram 3 | . . . . . . . . . . . . 3 Kick . | . . . . . . . . . . . . . Crush . | . . . . . . . . . . . . . Escape Stasis 54 | . . . . . . . . 16 . . 12 26 Rewire . | . . . . . . . . . . . . . Trap . | . . . . . . . . . . . . . Miscellaneous . | . . . . . . . . . . . . . Route ------- -11/Scrapyard -10/Materials -10/Mines -9/Materials -9/Mines -8/Materials (discovered 3 exits: *Fac x2 / Gar) -8/Garrison (discovered 3 exits: *Fac x3) -7/Factory -7/DSF -6/Factory -6/Garrison (discovered 2 exits: *Fac x2) -6/Factory -6/Garrison History --------- Turn | Location | Event 21 | -11/Scrapyard | Discovered new exit (range 15) 150 | -11/Scrapyard | Entered Materials 304 | -10/Materials | Build established: Mutant 364 | -10/Materials | Discovered new exit (range 3) 389 | -10/Materials | Entered Mines 412 | -10/Mines | Met a Derelict bent on vengeance 581 | -10/Mines | Discovered new exit (range 14) 659 | -10/Mines | Learned location of Mines (-8) 685 | -10/Mines | Received a Rocket Launcher from a helpful Derelict 783 | -10/Mines | Entered Materials 783 | -9/Materials | Evolved 2 slots: Utility x1, Weapon x1 898 | -9/Materials | Central database locked down 978 | -9/Materials | Repaired Lgt. Ion Engine 1021 | -9/Materials | Repaired Lgt. Treads 1353 | -9/Materials | Build established: Tank 1574 | -9/Materials | Discovered new exit (range 11) 1628 | -9/Materials | Entered Mines 1734 | -9/Mines | Learned Materials trap positions 2072 | -9/Mines | Discovered new exit (range 8) 2389 | -9/Mines | Entered Materials 2389 | -8/Materials | Evolved 2 slots: Propulsion x1, Utility x1 2390 | -8/Materials | Loaded intel: 26 trap records 2534 | -8/Materials | Found Prototype Device 2538 | -8/Materials | Lost 3 parts (2u1w) 2800 | -8/Materials | Build established: Scavenger-Tank 2800 | -8/Materials | Discovered new exit (range 7) 3406 | -8/Materials | Repaired Reflective Plating 3414 | -8/Materials | Discovered new exit (range 10) 3448 | -8/Materials | Central database locked down 3464 | -8/Materials | Build established: Tank 3509 | -8/Materials | Identified exit to Garrison 3509 | -8/Materials | Entered Garrison 3526 | -8/Garrison | Triggered checkpoint 3803 | -8/Garrison | Triggered checkpoint 3907 | -8/Garrison | Triggered checkpoint 3999 | -8/Garrison | Discovered new exit (range 10) 4104 | -8/Garrison | Rescued HV-R5K 4303 | -8/Garrison | Triggered checkpoint 4397 | -8/Garrison | Discovered new exit (range 12) 4577 | -8/Garrison | Discovered new exit (range 12) 4685 | -8/Garrison | Triggered checkpoint 5038 | -8/Garrison | Build established: Scavenger-Mutant 5133 | -8/Garrison | Triggered checkpoint 5271 | -8/Garrison | Installed Relay Interface Framework 5399 | -8/Garrison | Garrison Relay disabled 5468 | -8/Garrison | Entered Factory 5468 | -7/Factory | Accompanied by 1 ally (HV-R5K) 5468 | -7/Factory | Evolved 2 slots: Utility x2 5521 | -7/Factory | Identified exit to DSF 5521 | -7/Factory | Entered DSF 5521 | -7/DSF | Accompanied by 1 ally (HV-R5K) 5539 | -7/DSF | Additional patrols routed to DSF 5618 | -7/DSF | Discovered new exit (range 15) 5863 | -7/DSF | Sterilization system engaged 5883 | -7/DSF | Ambient heat levels rising (+10) 5898 | -7/DSF | Ambient heat levels rising (+10) 5913 | -7/DSF | Ambient heat levels rising (+10) 5928 | -7/DSF | Ambient heat levels rising (+10) 5943 | -7/DSF | Ambient heat levels rising (+10) 5947 | -7/DSF | Entered Factory 5947 | -6/Factory | Accompanied by 1 ally 5947 | -6/Factory | Evolved 2 slots: Power x1, Propulsion x1 6244 | -6/Factory | Build established: Scavenger-Tank 6564 | -6/Factory | Identified exit to Garrison 6564 | -6/Factory | Entered Garrison 6592 | -6/Garrison | Triggered checkpoint 6622 | -6/Garrison | Triggered checkpoint 6766 | -6/Garrison | Spotted B-75 Beast 6784 | -6/Garrison | Destroyed B-75 Beast 6850 | -6/Garrison | Triggered checkpoint 6856 | -6/Garrison | Destroyed 10 combat bots 6887 | -6/Garrison | Discovered new exit (range 13) 6911 | -6/Garrison | Expanded RIF knowledge: Robot Detection 7108 | -6/Garrison | Triggered checkpoint 7148 | -6/Garrison | Garrison Relay disabled 7242 | -6/Garrison | Rescued a captive Derelict 7336 | -6/Garrison | Triggered checkpoint 7386 | -6/Garrison | Lost 3 allies 7426 | -6/Garrison | Triggered checkpoint 7581 | -6/Garrison | Discovered new exit (range 8) 7672 | -6/Garrison | Entered Factory 8186 | -6/Factory | Lost 10 parts (1p4n4u1w) 8315 | -6/Factory | Core integrity fell below 50% 8351 | -6/Factory | Lost 8 parts (1p3n2u2w) 8408 | -6/Factory | Identified exit to Garrison 8408 | -6/Factory | Entered Garrison 8422 | -6/Garrison | Triggered checkpoint 8452 | -6/Garrison | Core integrity fell below 20% 8497 | -6/Garrison | Lost 8 parts (2p2n1u3w) 8678 | -6/Garrison | Triggered checkpoint 8684 | -6/Garrison | Destroyed by X-72 Disruptor with Arc Projector Last Messages --------------- 08641_ Field strength at 72. 08642_ Field strength at 65. 08643_ Field strength at 58. 08644_ Field strength at 51. 08645_ Field strength at 44. 08646_ Field strength at 37. 08647_ Field strength at 30. 08648_ Field strength at 23. 08649_ Field strength at 16. 08650_ Field strength at 9. 08651_ Field strength at 2. 08652_ Stasis field depleted. 08665_ Gravmag System destroyed. 08667_ Penetrated by Slug. 08677_ System corrupted: Energy discharge (-37). 08678_ Beams of light sweep through the air. An alarm sounds. 08680_ Slug penetrates Wall. 08680_ Imp. Core Shielding destroyed. 08683_ Gravmag System destroyed. 08684_ Critical hit (Destroy). Map ----- +----------------------------------------------------+ | | | | | | | | | | | | | | | | | | | | | | | | | | | | | | | ???????????????????????????????????? | | ???????????????????????????????????? | | ????????????????????????####???????? | | ??????????????????????### #???????? | | ???????????????????????"#^^###?????? | | ???????????????????????" #?????? | | ???????????????????????? s ??????? | | ???????????????????????? s ???????? | | ????????????????????????# s#???????? | | ????????????????????????# #??#????? | | #########?###############@ # #????? | | # % ^^ = xx ; #??? | | ! ! !h % #xx##???? | | ??######### ### #;;;;;###?x#????? | | ??????????# #?# ######?????#????? | | ??????????# #?#####???????????????? | | ??????????# #?????????????????????? | | ??????????# #?????????????????????? | | ??????????# #?????????????????????? | | ??????????# #?????????????????????? | | ????????### #?????????????????????? | | ????????# #?????????????????????? | | ????????# #?????????????????????? | | ????????# #?????????????????????? | | ????????### #?????????????????????? | | ??????????# #?????????????????????? | | ??????????# #?????????????????????? | | ??????????# #?????????????????????? | | ??????????# #?????????????????????? | | ??????????# #?????????????????????? | | ??????????? #?????????????????????? | | ??????????? #?????????????????????? | | ??????????? #?????????????????????? | | ??????????? #?????????????????????? | | ??????????? ??????????????????????? | +----------------------------------------------------+ Best States ------------- Heat Dissipation 56 Energy Generation 29 Energy Capacity 490 Matter Stores 300 Matter Capacity 300 Sight Range 16 Robot Scan Range 15 Terrain Scan Range 16 Terrain Scan Density 10 ECM Strength 1 Jamming Range 12 Armor Coverage 600 Resistance: TH 10 Core Shielding 30 Evasion (%) 63 Target Analysis 5 Recoil Reduction 4 Offensive Hacking 10 Relay Coupler Types 2 Relay Coupler Value 52 Item Schematics ----------------- Rocket Launcher | -9/Materials | Scanalyzed Wheel | -9/Materials | Scanalyzed Robot Schematics ------------------ None Fabricated ------------ Nothing Repaired ---------- Lgt. Ion Engine | 17% | -9/Materials Lgt. Treads | 30% | -9/Materials Reflective Plating | 30% | -8/Materials Studied --------- Grenade Launcher | -9/Materials | Hacked Rocket Launcher | -8/Materials | Hacked Wheel | -8/Materials | Hacked Alien Tech Used ----------------- None Achievements -------------- Hot Goods Challenges ------------ None Game ------ Seed VariableScrapoidDiverter Manual? 0 Play Time 02:19:47 Cumulative 55.2 hours Start 2026.08.22 @ 23:52:43 End 2026.08.23 @ 14:47:01 Sessions 11 Manual Loads 0 Difficulty Rogue Special Mode None Game No. 65 Rogue 65 Adventurer 0 Explorer 0 Win Type - Total 0 Types 0/0/0/0/0/0/0/0/0/0 Lore% 23 Gallery% 32 Achievement% 27 Wizard Run 0 Options --------- Layout 0 ASCII 1 Keyboard 0 Movement Mouse Keybinds 0 Fullscreen 2 Font 18/SmallcapsGlow Map View 76x50 Zoom Use 0% Tactical HUD 1 Map Filters NONE Filters NONE Steam 1 RUN: 3706dd46-e327-4e08-a7cf-4e5fdada7371